[Event "Championship of RSO-Alania 2020"]
[Site "Vladikavkaz, Russia"]
[Date "2021.01.06"]
[Round "6.3"]
[White "Agkatsev, Felix A"]
[Black "Hastsaev, Marat"]
[Result "1-0"]
[TimeControl "90+30"]
[WhiteElo "1338"]
[BlackElo "2007"]

1. d4 {[%clk 01:30:59]} d5 {[%clk 01:30:53]} {[%emt 00:00:08]} 2. Nf3 {[%clk
01:31:24]} {[%emt 00:00:05]} Nf6 {[%clk 01:31:14]} {[%emt 00:00:08]} 3. e3
{[%clk 01:31:49]} {[%emt 00:00:06]} c5 {[%clk 01:31:11]} {[%emt 00:00:33]} 4.
b3 {[%clk 01:32:14]} {[%emt 00:00:05]} Nc6 {[%clk 01:31:05]} {[%emt 00:00:36]}
5. Bb2 {[%clk 01:32:36]} {[%emt 00:00:08]} Bf5 {[%clk 01:29:49]} {[%emt
00:01:46]} 6. Bd3 {[%clk 01:31:30]} {[%emt 00:01:36]} Bxd3 {[%clk 01:29:06]}
{[%emt 00:01:14]} 7. cxd3 {[%clk 01:31:55]} {[%emt 00:00:06]} cxd4 {[%clk
01:28:56]} {[%emt 00:00:39]} 8. Nxd4 {[%clk 01:30:55]} {[%emt 00:01:29]} Rc8
{[%clk 01:24:33]} {[%emt 00:04:54]} 9. Nd2 {[%clk 01:29:17]} {[%emt 00:02:08]}
e6 {[%clk 01:19:18]} {[%emt 00:05:46]} 10. O-O {[%clk 01:29:31]} {[%emt
00:00:16]} Bd6 {[%clk 01:18:05]} {[%emt 00:01:43]} 11. f4 {[%clk 01:28:50]}
{[%emt 00:01:11]} Nxd4 {[%clk 01:16:48]} {[%emt 00:01:46]} 12. Bxd4 {[%clk
01:29:13]} {[%emt 00:00:07]} Bc5 {[%clk 01:16:53]} {[%emt 00:00:25]} 13. Nf3
{[%clk 01:28:06]} {[%emt 00:01:37]} O-O {[%clk 01:14:08]} {[%emt 00:03:15]} 14.
Rc1 {[%clk 01:22:49]} {[%emt 00:05:47]} Qa5 {[%clk 01:08:34]} {[%emt 00:06:04]}
15. Rf2 {[%clk 01:19:52]} {[%emt 00:03:27]} Ng4 {[%clk 01:03:44]} {[%emt
00:05:20]} 16. Re2 {[%clk 01:19:38]} {[%emt 00:06:26]} Bxd4 {[%clk 00:54:12]}
{[%emt 00:10:10]} 17. Nxd4 {[%clk 01:19:00]} {[%emt 00:01:07]} Nxe3 {[%clk
00:53:45]} {[%emt 00:00:57]} 18. Rxe3 {[%clk 01:19:22]} {[%emt 00:00:08]} Qb6
{[%clk 00:54:04]} {[%emt 00:00:11]} 19. Rxc8 {[%clk 01:19:33]} {[%emt
00:00:18]} Rxc8 {[%clk 00:54:25]} {[%emt 00:00:09]} 20. Qa1 {[%clk 01:19:25]}
{[%emt 00:00:37]} Rc5 {[%clk 00:46:58]} {[%emt 00:07:59]} 21. Kf2 {[%clk
01:17:09]} {[%emt 00:02:45]} Qc7 {[%clk 00:40:28]} {[%emt 00:07:00]} 22. g3
{[%clk 01:16:42]} {[%emt 00:00:58]} Rc3 {[%clk 00:39:34]} {[%emt 00:01:24]} 23.
Kf3 {[%clk 01:14:52]} {[%emt 00:02:19]} Qc5 {[%clk 00:35:56]} {[%emt 00:04:09]}
24. Ne2 {[%clk 01:12:52]} {[%emt 00:02:29]} Rc2 {[%clk 00:35:55]} {[%emt
00:00:32]} 25. Qe5 {[%emt 00:01:55]} Rxa2 {[%emt 00:04:32]} 26. Qb8+ {[%emt
00:00:13]} Qf8 {[%emt 00:00:02]} 27. Qxb7 {[%emt 00:00:48]} g6 {[%emt
00:01:05]} 28. h4 {[%emt 00:00:58]} Qh6 {[%emt 00:01:54]} 29. Qb8+ {[%emt
00:00:38]} Kg7 {[%emt 00:00:38]} 30. Qe5+ {[%emt 00:00:34]} Kg8 {[%emt
00:01:01]} 31. d4 {[%emt 00:01:02]} Rc2 {[%emt 00:01:21]} 32. Rc3 {[%emt
00:03:23]} Rxc3+ {[%emt 00:00:04]} 33. Nxc3 {[%emt 00:00:02]} Qf8 {[%emt
00:00:07]} 34. Nd1 {[%emt 00:00:50]} Qb4 {[%emt 00:00:24]} 35. Qe3 {[%emt
00:00:07]} a5 {[%emt 00:00:22]} 36. Nf2 {[%emt 00:02:15]} a4 {[%emt 00:00:51]}
37. bxa4 {[%emt 00:00:04]} Qxa4 {[%emt 00:00:04]} 38. Kg4 {[%emt 00:00:10]} Qc2
{[%emt 00:02:59]} 39. Nd3 {[%emt 00:03:51]} h6 {[%emt 00:06:32]} 40. f5 {[%emt
00:05:01]} Qd1+ {[%emt 00:02:12]} 41. Kf4 {[%emt 00:02:57]} Qf1+ {[%emt
00:01:19]} 42. Ke5 {[%emt 00:01:42]} Qxf5+ {[%emt 00:00:32]} 43. Kd6 Qf6 {[%emt
00:02:40]} 44. Ne5 {[%emt 00:00:14]} g5 {[%emt 00:02:35]} 45. hxg5 {[%emt
00:00:06]} hxg5 {[%emt 00:00:07]} 46. Nd7 {[%emt 00:01:50]} Qh6 {[%emt
00:03:57]} 47. Qe5 {[%emt 00:02:32]} Qg7 {[%emt 00:05:04]} 48. Qxg7+ {[%emt
00:07:03]} Kxg7 {[%emt 00:00:02]} 49. Ke7 {[%emt 00:00:12]} Kg6 {[%emt
00:02:53]} 50. Ne5+ {[%clk 00:47:46]} {[%emt 00:00:07]} Kf5 {[%clk 00:05:47]}
{[%emt 00:00:22]} 51. Nxf7 {[%clk 00:48:00]} {[%emt 00:00:16]} g4 {[%clk
00:05:36]} {[%emt 00:00:41]} 52. Nh6+ {[%clk 00:48:15]} {[%emt 00:00:14]} Ke4
{[%clk 00:05:35]} {[%emt 00:00:31]} 53. Nxg4 {[%clk 00:48:31]} {[%emt
00:00:14]} Kxd4 {[%clk 00:06:01]} {[%emt 00:00:05]} 54. Kxe6 {[%clk 00:48:47]}
{[%emt 00:00:14]} Ke4 {[%clk 00:06:21]} {[%emt 00:00:10]} 55. Nf6+ {[%clk
00:47:20]} {[%emt 00:01:58]} Kf3 {[%clk 00:06:45]} {[%emt 00:00:06]} 56. g4
{[%clk 00:47:45]} {[%emt 00:00:05]} d4 {[%clk 00:07:10]} {[%emt 00:00:04]} 57.
g5 {[%clk 00:48:08]} {[%emt 00:00:07]} d3 {[%clk 00:06:59]} {[%emt 00:00:42]}
58. Nd5 {[%clk 00:48:29]} {[%emt 00:00:07]} d2 {[%clk 00:07:02]} {[%emt
00:00:28]} 59. Nc3 {[%clk 00:48:55]} {[%emt 00:00:04]} 1-0

[Event "Championship of RSO-Alania 2020"]
[Site "Vladikavkaz, Russia"]
[Date "2021.01.06"]
[Round "6.4"]
[White "Ryazanov, Nikolay"]
[Black "Tsamalaidze, Liana"]
[Result "1-0"]
[TimeControl "90+30"]
[WhiteElo "1788"]
[BlackElo "1446"]

1. e4 {[%clk 01:30:30]} {[%emt 00:20:48]} c6 {[%clk 01:31:45]} {[%emt
00:01:52]} 2. c4 {[%clk 01:32:04]} {[%emt 00:00:15]} e6 {[%clk 01:31:25]}
{[%emt 00:00:51]} 3. d4 {[%clk 01:31:35]} {[%emt 00:00:58]} d5 {[%clk
01:31:47]} {[%emt 00:00:07]} 4. Nc3 {[%clk 01:31:34]} {[%emt 00:00:32]} dxe4
{[%clk 01:31:18]} {[%emt 00:01:00]} 5. Nxe4 {[%clk 01:31:51]} {[%emt 00:00:12]}
Bb4+ {[%clk 01:31:39]} {[%emt 00:00:09]} 6. Nc3 {[%clk 01:26:17]} {[%emt
00:06:03]} Nf6 {[%clk 01:29:28]} {[%emt 00:02:41]} 7. Nf3 {[%clk 01:25:45]}
{[%emt 00:01:02]} Ne4 {[%clk 01:25:58]} {[%emt 00:04:00]} 8. Qc2 {[%clk
01:23:48]} {[%emt 00:02:26]} Nxc3 {[%clk 01:26:16]} {[%emt 00:00:13]} 9. bxc3
{[%clk 01:24:06]} {[%emt 00:00:12]} Be7 {[%clk 01:26:39]} {[%emt 00:00:08]} 10.
Bd3 {[%clk 01:23:39]} {[%emt 00:00:56]} h6 {[%clk 01:26:20]} {[%emt 00:00:50]}
11. O-O {[%clk 01:19:55]} {[%emt 00:04:13]} O-O {[%clk 01:26:39]} {[%emt
00:00:11]} 12. Bf4 {[%clk 01:17:54]} {[%emt 00:02:31]} Nd7 {[%clk 01:26:43]}
{[%emt 00:00:27]} 13. Rfe1 {[%clk 01:18:00]} {[%emt 00:00:23]} Nf6 {[%clk
01:26:22]} {[%emt 00:00:51]} 14. Rad1 {[%clk 01:16:09]} {[%emt 00:02:21]} Qa5
{[%clk 01:25:08]} {[%emt 00:01:45]} 15. Ne5 {[%clk 01:13:11]} {[%emt 00:03:28]}
Nh5 {[%clk 01:24:39]} {[%emt 00:00:59]} 16. Bc1 {[%clk 01:11:41]} {[%emt
00:02:00]} Nf6 {[%clk 01:20:33]} {[%emt 00:04:36]} 17. Re3 {[%clk 01:10:57]}
{[%emt 00:01:13]} Nd7 {[%clk 01:17:28]} {[%emt 00:03:36]} 18. Rde1 {[%clk
01:09:58]} {[%emt 00:01:29]} Bg5 {[%clk 01:16:00]} {[%emt 00:01:58]} 19. Rh3
{[%clk 00:59:10]} {[%emt 00:11:16]} Bxc1 {[%clk 00:57:56]} {[%emt 00:18:36]} 20.
Qxc1 {[%clk 00:59:17]} {[%emt 00:00:23]} f5 {[%clk 00:58:00]} {[%emt 00:00:26]}
21. Ng6 {[%clk 00:47:43]} {[%emt 00:12:04]} Rf6 {[%clk 00:57:34]} {[%emt
00:00:56]} 22. Nf4 {[%clk 00:47:15]} {[%emt 00:00:58]} Nf8 {[%clk 00:56:27]}
{[%emt 00:01:38]} 23. Qc2 {[%clk 00:38:39]} {[%emt 00:09:05]} g5 {[%clk
00:49:14]} {[%emt 00:07:43]} 24. Nh5 {[%clk 00:38:50]} {[%emt 00:00:18]} Rf7
{[%clk 00:49:11]} {[%emt 00:00:33]} 25. Rhe3 {[%clk 00:38:20]} {[%emt
00:01:00]} Bd7 {[%clk 00:47:23]} {[%emt 00:02:18]} 26. Re5 {[%clk 00:31:08]}
{[%emt 00:07:41]} Qc7 {[%clk 00:46:42]} {[%emt 00:01:12]} 27. d5 {[%clk
00:29:59]} {[%emt 00:01:39]} cxd5 {[%clk 00:46:12]} {[%emt 00:01:01]} 28. cxd5
{[%clk 00:30:21]} {[%emt 00:00:07]} exd5 {[%clk 00:30:32]} {[%emt 00:16:10]} 29.
Bxf5 {[%clk 00:30:19]} {[%emt 00:00:32]} Bxf5 {[%clk 00:28:16]} {[%emt
00:02:47]} 30. Rxf5 {[%clk 00:30:45]} {[%emt 00:00:04]} Rxf5 {[%clk 00:28:17]}
{[%emt 00:00:30]} 31. Qxf5 {[%clk 00:31:07]} {[%emt 00:00:07]} Qf7 {[%clk
00:28:23]} {[%emt 00:00:24]} 32. Nf6+ {[%clk 00:26:25]} {[%emt 00:05:12]} Kg7
{[%clk 00:28:12]} {[%emt 00:00:41]} 33. Nh5+ {[%clk 00:25:14]} {[%emt
00:01:41]} Kg8 {[%clk 00:28:20]} {[%emt 00:00:23]} 34. Qxd5 {[%clk 00:25:13]}
{[%emt 00:00:31]} Qxd5 {[%clk 00:27:03]} {[%emt 00:01:48]} 35. Nf6+ {[%clk
00:25:35]} {[%emt 00:00:06]} Kf7 {[%clk 00:27:21]} {[%emt 00:00:13]} 36. Nxd5
{[%clk 00:26:01]} {[%emt 00:00:04]} Re8 {[%clk 00:27:29]} {[%emt 00:00:21]} 37.
Rxe8 {[%clk 00:25:25]} {[%emt 00:01:07]} Kxe8 {[%clk 00:27:55]} {[%emt
00:00:05]} 38. f4 {[%clk 00:19:32]} {[%emt 00:06:23]} gxf4 {[%clk 00:28:06]}
{[%emt 00:00:18]} 39. Nxf4 {[%clk 00:19:35]} {[%emt 00:00:27]} Kd7 {[%clk
00:28:31]} {[%emt 00:00:05]} 40. Kf2 {[%clk 00:19:44]} {[%emt 00:00:21]} Kc6
{[%clk 00:28:44]} {[%emt 00:00:17]} 41. Ke3 {[%clk 00:19:57]} {[%emt 00:00:17]}
Kc5 {[%clk 00:29:06]} {[%emt 00:00:09]} 42. Kd3 {[%clk 00:20:08]} {[%emt
00:00:19]} Nd7 {[%clk 00:29:16]} {[%emt 00:00:20]} 43. Ne6+ {[%clk 00:20:17]}
{[%emt 00:00:21]} Kd5 {[%clk 00:29:35]} {[%emt 00:00:12]} 44. Nf4+ {[%clk
00:19:46]} {[%emt 00:01:01]} Kc5 {[%clk 00:29:58]} {[%emt 00:00:07]} 45. Ng6
{[%clk 00:19:59]} {[%emt 00:00:17]} Nf6 {[%clk 00:29:57]} {[%emt 00:00:31]} 46.
h3 {[%clk 00:19:10]} {[%emt 00:01:18]} b5 {[%clk 00:30:20]} {[%emt 00:00:07]}
47. a3 {[%clk 00:19:26]} {[%emt 00:00:14]} a6 {[%clk 00:30:29]} {[%emt
00:00:22]} 48. g4 {[%clk 00:18:40]} {[%emt 00:01:15]} Nd7 {[%clk 00:30:09]}
{[%emt 00:00:50]} 49. Ne7 {[%clk 00:13:28]} {[%emt 00:05:41]} Ne5+ {[%clk
00:30:27]} {[%emt 00:00:14]} 50. Ke4 {[%clk 00:13:21]} {[%emt 00:00:37]} Nf7
{[%clk 00:25:51]} {[%emt 00:05:05]} 51. h4 {[%clk 00:11:33]} {[%emt 00:02:18]}
Kc4 {[%clk 00:23:49]} {[%emt 00:02:33]} 52. Nd5 {[%clk 00:10:17]} {[%emt
00:01:45]} Nh8 {[%clk 00:20:13]} {[%emt 00:04:06]} 53. h5 {[%clk 00:08:42]}
{[%emt 00:02:05]} Nf7 {[%clk 00:20:26]} {[%emt 00:00:18]} 54. Nc7 {[%clk
00:08:31]} {[%emt 00:00:41]} Ng5 {[%clk 00:15:57]} {[%emt 00:04:59]} 55. Kf5
{[%clk 00:08:43]} {[%emt 00:00:18]} Nf3 {[%clk 00:16:21]} {[%emt 00:00:05]} 56.
Nxa6 {[%clk 00:07:45]} {[%emt 00:01:28]} Kxc3 {[%clk 00:16:22]} {[%emt
00:00:29]} 57. Nc7 {[%clk 00:07:48]} {[%emt 00:00:27]} b4 {[%clk 00:16:17]}
{[%emt 00:00:35]} 58. axb4 {[%clk 00:08:08]} {[%emt 00:00:11]} Kxb4 {[%clk
00:16:45]} {[%emt 00:00:02]} 59. Nd5+ {[%clk 00:07:07]} {[%emt 00:01:31]} Kc5
{[%clk 00:16:45]} {[%emt 00:00:31]} 60. Nf6 {[%clk 00:07:02]} {[%emt 00:00:34]}
Kd6 {[%clk 00:15:44]} {[%emt 00:01:31]} 61. Ng8 {[%clk 00:07:17]} {[%emt
00:00:15]} Kd7 {[%clk 00:16:32]} {[%emt 00:02:07]} 62. Nxh6 {[%clk 00:08:10]}
{[%emt 00:01:03]} Ke7 {[%clk 00:16:59]} {[%emt 00:00:03]} 63. Kg6 {[%clk
00:07:44]} {[%emt 00:00:56]} Kf8 {[%clk 00:17:22]} {[%emt 00:00:08]} 64. g5
{[%clk 00:07:32]} {[%emt 00:00:42]} Nh4+ {[%clk 00:17:39]} {[%emt 00:00:13]} 65.
Kf6 {[%clk 00:07:28]} {[%emt 00:00:34]} 1-0

[Event "Championship of RSO-Alania 2020"]
[Site "Vladikavkaz, Russia"]
[Date "2021.01.06"]
[Round "6.5"]
[White "Edziev, Vladimir"]
[Black "Koraev, Kazbek"]
[Result "1/2-1/2"]
[TimeControl "90+30"]
[WhiteElo "1478"]
[BlackElo "1755"]

1. e4 {[%clk 01:30:56]} {[%emt 00:00:03]} c5 {[%clk 01:30:38]} {[%emt
00:00:23]} 2. Nf3 {[%clk 01:31:20]} {[%emt 00:00:06]} d6 {[%clk 01:30:59]}
{[%emt 00:00:08]} 3. d4 {[%clk 01:31:43]} {[%emt 00:00:07]} cxd4 {[%emt
00:00:02]} 4. Nxd4 {[%emt 00:00:13]} Nf6 {[%clk 01:30:55]} {[%emt 00:00:19]} 5.
Nc3 {[%clk 01:32:02]} {[%emt 00:00:10]} a6 {[%clk 01:31:05]} {[%emt 00:00:20]}
6. Be2 {[%clk 01:32:17]} {[%emt 00:00:15]} e6 {[%clk 01:31:20]} {[%emt
00:00:15]} 7. O-O {[%clk 01:32:38]} {[%emt 00:00:09]} Be7 {[%clk 01:31:45]}
{[%emt 00:00:06]} 8. Be3 {[%clk 01:32:52]} {[%emt 00:00:15]} b5 {[%clk
01:31:47]} {[%emt 00:00:28]} 9. a3 {[%clk 01:32:06]} {[%emt 00:01:17]} Bb7
{[%clk 01:31:45]} {[%emt 00:00:32]} 10. Qd3 {[%clk 01:31:44]} {[%emt 00:00:52]}
Nc6 {[%clk 01:31:32]} {[%emt 00:00:42]} 11. Rae1 {[%clk 01:31:54]} {[%emt
00:00:20]} O-O {[%clk 01:31:31]} {[%emt 00:00:31]} 12. f4 {[%clk 01:31:47]}
{[%emt 00:00:37]} Qc7 {[%clk 01:30:45]} {[%emt 00:01:17]} 13. Bf3 {[%clk
01:31:40]} {[%emt 00:00:37]} Rac8 {[%clk 01:30:54]} {[%emt 00:00:21]} 14. Kh1
{[%clk 01:31:49]} {[%emt 00:00:22]} Nxd4 {[%clk 01:23:15]} {[%emt 00:08:08]} 15.
Bxd4 {[%clk 01:32:06]} {[%emt 00:00:12]} Nd7 {[%clk 01:20:43]} {[%emt
00:03:02]} 16. e5 {[%clk 01:30:51]} {[%emt 00:01:46]} dxe5 {[%clk 01:18:49]}
{[%emt 00:02:23]} 17. fxe5 {[%clk 01:31:17]} {[%emt 00:00:05]} Bxf3 {[%clk
01:18:41]} {[%emt 00:00:38]} 18. Rxf3 {[%clk 01:31:34]} {[%emt 00:00:13]} Qc4
{[%clk 01:18:50]} {[%emt 00:00:19]} 19. Re4 {[%clk 01:31:27]} {[%emt 00:00:38]}
Qxd3 {[%clk 01:17:58]} {[%emt 00:01:23]} 20. Rxd3 {[%clk 01:31:55]} {[%emt
00:00:02]} Rfd8 {[%emt 00:05:48]} 21. Bf2 {[%emt 00:03:30]} Nc5 {[%clk
01:05:14]} {[%emt 00:03:53]} 22. Bxc5 {[%clk 01:32:15]} {[%emt 00:00:12]} Bxc5
{[%clk 01:05:20]} {[%emt 00:00:24]} 23. Rxd8+ {[%clk 01:31:20]} {[%emt
00:01:26]} Rxd8 {[%clk 01:05:26]} {[%emt 00:00:23]} 24. g3 {[%clk 01:31:16]}
{[%emt 00:00:34]} Kf8 {[%emt 00:04:32]} 25. Kg2 {[%emt 00:00:18]} Rd4 {[%clk
00:57:45]} {[%emt 00:03:19]} 26. Kf3 {[%clk 01:31:26]} {[%emt 00:00:21]} Rd2
{[%clk 00:57:45]} {[%emt 00:00:28]} 27. Re2 {[%clk 01:31:43]} {[%emt 00:00:16]}
Rd4 {[%clk 00:57:56]} {[%emt 00:00:18]} 28. Re4 {[%clk 01:32:08]} {[%emt
00:00:06]} Rd2 {[%emt 00:00:18]} 29. Re2 {[%emt 00:00:09]} Rd4 {[%emt
00:00:38]} 30. Re4 {[%emt 00:05:24]} Rd2 {[%clk 00:54:27]} {[%emt 00:00:27]} 31.
Re2 {[%emt 00:00:20]} Rd4 {[%emt 00:00:10]} 1/2-1/2

[Event "Championship of RSO-Alania 2020"]
[Site "Vladikavkaz, Russia"]
[Date "2021.01.07"]
[Round "7.1"]
[White "Dryaeva, Lana"]
[Black "Ryazanov, Nikolay"]
[Result "1-0"]
[TimeControl "90+30"]
[WhiteElo "1404"]
[BlackElo "1788"]

1. d4 {[%clk 01:30:57]} {[%emt 00:00:03]} d5 {[%clk 01:30:52]} {[%emt
00:00:08]} 2. c4 {[%clk 01:30:53]} {[%emt 00:00:35]} e6 {[%clk 01:31:13]}
{[%emt 00:00:08]} 3. Nf3 {[%clk 01:30:55]} {[%emt 00:00:28]} c5 {[%clk
01:31:26]} {[%emt 00:00:16]} 4. cxd5 {[%clk 01:29:49]} {[%emt 00:01:37]} exd5
{[%clk 01:31:48]} {[%emt 00:00:07]} 5. Nc3 {[%clk 01:27:33]} {[%emt 00:02:47]}
Nc6 {[%clk 01:31:12]} {[%emt 00:01:05]} 6. e3 {[%clk 01:19:36]} {[%emt
00:08:28]} Nf6 {[%clk 01:31:10]} {[%emt 00:00:32]} 7. Be2 {[%clk 01:17:12]}
{[%emt 00:02:54]} Bd6 {[%clk 01:30:40]} {[%emt 00:01:00]} 8. O-O {[%clk
01:16:41]} {[%emt 00:01:02]} O-O {[%clk 01:30:37]} {[%emt 00:00:32]} 9. dxc5
{[%clk 01:16:21]} {[%emt 00:00:51]} Bxc5 {[%clk 01:30:58]} {[%emt 00:00:08]} 10.
b3 {[%clk 01:15:46]} {[%emt 00:01:07]} Be6 {[%clk 01:24:08]} {[%emt 00:07:19]}
11. Bb2 {[%clk 01:12:36]} {[%emt 00:03:40]} Qe7 {[%clk 01:21:32]} {[%emt
00:03:05]} 12. a3 {[%clk 01:06:53]} {[%emt 00:06:14]} a5 {[%clk 01:14:56]}
{[%emt 00:07:06]} 13. Nb5 {[%clk 01:05:22]} {[%emt 00:02:01]} Ne4 {[%clk
01:14:03]} {[%emt 00:01:21]} 14. Nfd4 {[%clk 00:56:16]} {[%emt 00:09:38]} Rac8
{[%clk 01:09:17]} {[%emt 00:05:15]} 15. Rc1 {[%clk 00:41:02]} {[%emt 00:15:45]}
Nxd4 {[%clk 00:51:26]} {[%emt 00:18:20]} 16. exd4 {[%clk 00:40:39]} {[%emt
00:00:54]} Bd6 {[%clk 00:48:16]} {[%emt 00:03:40]} 17. f3 {[%clk 00:34:32]}
{[%emt 00:06:37]} Qh4 {[%clk 00:44:01]} {[%emt 00:04:44]} 18. Nxd6 {[%clk
00:34:37]} {[%emt 00:00:26]} Nxd6 {[%clk 00:43:32]} {[%emt 00:00:58]} 19. Qd2
{[%clk 00:34:30]} {[%emt 00:00:38]} Nf5 {[%clk 00:37:10]} {[%emt 00:06:52]} 20.
Bd3 {[%clk 00:32:16]} {[%emt 00:02:44]} b6 {[%clk 00:34:11]} {[%emt 00:03:30]}
21. Qf2 {[%clk 00:18:30]} {[%emt 00:14:15]} Qf6 {[%clk 00:31:03]} {[%emt
00:03:38]} 22. Bb5 {[%clk 00:02:17]} {[%emt 00:16:42]} h5 {[%clk 00:29:35]}
{[%emt 00:01:57]} 23. Qd2 {[%clk 00:01:37]} {[%emt 00:01:11]} Nd6 {[%clk
00:26:34]} {[%emt 00:03:31]} 24. Bd3 {[%clk 00:01:46]} {[%emt 00:00:22]} h4
{[%clk 00:25:42]} {[%emt 00:01:21]} 25. a4 {[%clk 00:00:45]} {[%emt 00:01:32]}
Rfd8 {[%clk 00:18:51]} {[%emt 00:07:21]} 26. Ba6 {[%clk 00:00:37]} {[%emt
00:00:38]} Ra8 {[%clk 00:18:16]} {[%emt 00:01:06]} 27. Bd3 {[%clk 00:00:59]}
{[%emt 00:00:08]} Ra7 {[%clk 00:18:32]} {[%emt 00:00:13]} 28. Qe2 {[%clk
00:00:38]} {[%emt 00:00:51]} Qf4 {[%clk 00:14:38]} {[%emt 00:04:24]} 29. Qf2
{[%clk 00:00:36]} {[%emt 00:00:33]} Bf5 {[%clk 00:10:49]} {[%emt 00:04:19]} 30.
g3 {[%clk 00:00:34]} {[%emt 00:00:32]} Qg5 {[%clk 00:10:55]} {[%emt 00:00:24]}
31. Bxf5 {[%clk 00:00:32]} {[%emt 00:00:32]} Nxf5 {[%clk 00:11:10]} {[%emt
00:00:15]} 32. g4 {[%clk 00:00:58]} {[%emt 00:00:05]} Re8 {[%clk 00:09:16]}
{[%emt 00:02:23]} 33. Rc6 {[%clk 00:00:36]} {[%emt 00:00:52]} Rae7 {[%clk
00:09:31]} {[%emt 00:00:15]} 34. Bc1 {[%clk 00:00:54]} {[%emt 00:00:12]} Ne3
{[%clk 00:09:19]} {[%emt 00:00:42]} 35. h3 {[%clk 00:00:33]} {[%emt 00:00:50]}
Qf4 {[%clk 00:09:18]} {[%emt 00:00:31]} 36. Rxb6 {[%clk 00:00:35]} {[%emt
00:00:28]} Qxd4 {[%clk 00:09:13]} {[%emt 00:00:34]} 37. Rc6 {[%clk 00:00:41]}
{[%emt 00:00:24]} Qd3 {[%clk 00:08:11]} {[%emt 00:01:32]} 38. Re1 {[%clk
00:00:49]} {[%emt 00:00:22]} g5 {[%clk 00:05:04]} {[%emt 00:03:37]} 39. Bd2
{[%clk 00:00:34]} {[%emt 00:00:45]} Nc2 {[%clk 00:03:03]} {[%emt 00:02:30]} 40.
Rxe7 {[%clk 00:00:40]} {[%emt 00:00:24]} Rxe7 {[%clk 00:03:33]} 41. Rc8+ {[%clk
00:00:53]} {[%emt 00:00:16]} Kh7 {[%clk 00:03:45]} {[%emt 00:00:17]} 42. Rc3
{[%clk 00:01:20]} {[%emt 00:00:03]} Qg6 {[%clk 00:03:20]} {[%emt 00:00:56]} 43.
Qc5 {[%clk 00:00:35]} {[%emt 00:01:15]} Ne1 {[%clk 00:01:57]} {[%emt 00:01:53]}
44. Qxe7 {[%clk 00:00:48]} {[%emt 00:00:16]} 1-0